bitfinex/quotes_ETHUSD_20240530
["timestamp","ask_amount","ask_price","bid_price","bid_amount"]
[1717058369272,2.68322,3726.9,3726.7,1.34346474]
[1717058370312,2.68283,3727.4,3726.8,1.29789222]
[1717058370510,3.58051026,3727.3,3726.8,1.29789222]
[1717058370673,0.58051026,3727.2,3726.8,1.29789222]
[1717058370873,0.58051026,3727.2,3726.9,0.04508976]
[1717058371090,0.58051026,3727.2,3727.0,1.29789222]
[1717058371272,0.58051026,3727.2,3727.1,0.04507705]
[1717058371472,0.58051026,3727.2,3727.1,1.34296927]
[1717058375360,0.58051026,3727.2,3727.1,0.04507705]
[1717058375874,2.68305,3727.1,3726.9,0.55]
[1717058376352,0.58054579,3727.0,3726.9,0.55]
[1717058377911,1.24450537,3727.0,3726.9,0.55]
[1717058378278,4.79450537,3727.0,3726.9,0.55]
[1717058378811,4.24450537,3727.0,3726.9,0.55]
[1717058379021,3.61814579,3727.0,3726.9,0.55]
[1717058379313,3.58054579,3727.0,3726.9,0.55]
[1717058383337,4.13054579,3727.0,3726.9,0.55]
[1717058384648,4.13059877,3727.0,3726.9,0.55]
[1717058391676,4.13059877,3727.0,3725.7,2.2663]
[1717058391970,1.81196365,3726.9,3725.8,1.34329513]
[1717058392196,4.81196365,3726.9,3725.8,1.34329513]
[1717058392371,0.58059877,3726.8,3725.8,1.34329513]
[1717058392536,0.55,3726.7,3725.8,1.34329513]
[1717058392736,0.23619637,3726.6,3725.8,1.34329513]
[1717058392944,2.6839,3726.0,3725.8,1.34329513]
[1717058393280,0.58059877,3725.9,3725.8,1.34329513]
[1717058394984,2.6839,3726.0,3725.8,1.34329513]
[1717058395843,2.68341,3726.6,3725.9,3.65729222]
[1717058396045,0.58066263,3726.5,3726.0,1.79795096]
[1717058396267,0.58066263,3726.5,3726.0,1.84336744]
[1717058396485,0.58066263,3726.5,3726.1,2.2869]
[1717058396690,0.58066263,3726.5,3726.2,1.71091896]
[1717058396898,0.58066263,3726.5,3726.2,1.75632272]
[1717058397077,0.58066263,3726.5,3726.3,3.58479222]
[1717058397497,2.68341,3726.6,3726.4,0.04539104]
[1717058397696,2.68341,3726.6,3726.5,1.29789222]
[1717058397895,3.26398207,3726.6,3726.5,1.29789222]
[1717058398095,3.26398207,3726.6,3726.5,1.3432769]
[1717058399020,3.2639862,3726.6,3726.5,1.3432769]
[1717058399904,2.68341,3726.6,3726.5,1.74759726]
[1717058401282,2.68341,3726.6,3726.5,1.3432769]
[1717058401599,3.26398556,3726.6,3726.5,1.3432769]
[1717058402177,3.26398071,3726.6,3726.5,0.04538468]
[1717058402379,3.26398071,3726.6,3726.5,1.3432769]
[1717058402674,3.26398071,3726.6,3726.5,1.29789222]
[1717058402874,2.68341,3726.6,3726.5,1.34289895]
[1717058403388,2.92586576,3727.5,3726.6,2.4077]
[1717058403601,7.38,3728.0,3726.8,2.4077]
[1717058403602,2.53109712,3727.4,3726.8,2.4077]
[1717058403904,1.95055473,3727.3,3726.9,1.29789222]
[1717058404078,1.95055473,3727.2,3726.9,1.3428768]
[1717058404283,1.95055473,3727.1,3727.0,0.37505768]
[1717058404503,1.95055473,3727.1,3727.0,1.6729499]
[1717058404669,1.95055473,3727.1,3727.0,1.71792155]
[1717058406006,1.95055473,3727.5,3727.0,1.71792155]
[1717058406214,1.95033511,3727.4,3727.1,1.29789222]
[1717058406370,1.95033511,3727.3,3727.1,1.70227437]
[1717058406571,1.95033511,3727.2,3727.1,1.70227437]
[1717058406814,1.95033511,3727.5,3727.1,1.70227437]
[1717058410608,1.95033511,3727.5,3727.2,1.29789222]
[1717058410816,1.95033511,3727.5,3727.4,2.3393]
[1717058411015,1.95033511,3727.5,3727.4,3.63719222]
[1717058411716,1.95033511,3727.6,3727.4,3.63719222]
[1717058411903,2.68268,3727.7,3727.5,1.29789222]
[1717058412237,1.9501579,3727.6,3727.5,1.29789222]
[1717058414088,1.9501579,3727.6,3727.5,1.34172518]
[1717058416898,1.9501579,3727.6,3727.5,1.7079077]
[1717058419237,1.9501579,3727.6,3727.5,1.34172518]
[1717058420334,2.68268,3727.7,3727.5,1.34172518]
[1717058421140,1.95011821,3727.6,3727.5,1.34172518]
[1717058422435,1.95011821,3727.6,3727.5,0.04383296]
[1717058422615,2.6829,3727.3,3726.6,2.3569]
[1717058422818,1.95011821,3727.2,3726.7,1.83358222]
[1717058423001,1.95011821,3727.2,3726.7,1.87732216]
[1717058423635,2.68307,3727.1,3726.7,1.34163216]
[1717058423840,1.95011821,3727.0,3726.7,1.34163216]
[1717058424345,2.68307,3727.1,3726.7,1.34163216]
[1717058424633,2.68269,3727.6,3726.9,1.29789222]
[1717058424837,2.53093817,3727.5,3726.9,1.29789222]
[1717058425038,1.95043726,3727.4,3727.0,0.41337344]
[1717058425236,0.58044847,3727.5,3727.1,1.29789222]
[1717058425537,1.95027942,3727.4,3727.1,1.34160672]
[1717058426035,0.58044348,3727.5,3727.1,1.34160672]
[1717058426245,1.95025086,3727.4,3727.1,1.34160672]
[1717058427137,1.95025086,3727.4,3727.1,1.74822265]
[1717058427330,1.95025086,3727.4,3727.2,3.69329222]
[1717058427518,0.58044348,3727.5,3727.2,3.69329222]
[1717058427519,0.58044348,3727.5,3727.3,1.29789222]
[1717058427836,0.58044348,3727.5,3727.3,1.34170893]
[1717058428041,0.58044348,3728.0,3727.3,1.34170893]
[1717058428204,1.95008407,3727.9,3727.4,0.41437249]
[1717058428409,1.95008407,3727.9,3727.5,1.29789222]
[1717058433625,1.95008407,3727.8,3727.5,1.29789222]
[1717058433808,0.580392,3728.0,3727.5,1.29789222]
[1717058434009,1.95006637,3727.9,3727.5,1.29789222]
[1717058434245,1.95006637,3727.9,3727.6,0.17122647]
[1717058434458,1.95006637,3727.9,3727.7,1.29789222]
[1717058435515,1.95006637,3727.9,3727.8,2.3743]
[1717058435713,1.95006637,3727.9,3727.8,3.67219222]
[1717058436018,0.580392,3728.0,3727.8,3.74413565]
[1717058436222,0.580392,3728.0,3727.9,1.68942843]
[1717058436453,0.580392,3728.5,3727.9,1.76136474]
[1717058436665,1.94987037,3728.4,3727.9,1.76136474]
[1717058436955,1.94987037,3728.4,3727.9,1.68942843]
[1717058437154,2.6822,3728.3,3728.0,0.0719292]
[1717058437329,2.53026237,3728.2,3728.1,1.29789222]
[1717058437744,2.53026237,3728.2,3728.1,1.36981431]
[1717058437924,2.53022804,3728.2,3728.1,1.36981431]
[1717058438946,2.95052851,3728.2,3728.1,1.36981431]
[1717058443049,2.95052851,3728.2,3728.1,3.83461431]
[1717058443385,2.37017084,3728.2,3728.1,4.21807574]
[1717058443581,2.95049311,3728.2,3728.1,1.75327574]
[1717058443787,2.95049311,3728.2,3728.1,1.36981431]
[1717058447635,2.95049311,3728.2,3728.1,0.07192209]
[1717058447836,2.68241,3728.0,3727.5,2.499065]
[1717058448081,2.53019264,3727.9,3727.6,1.36985974]
[1717058448391,1.94987037,3727.8,3727.6,1.36985974]
[1717058448608,2.68254,3727.8,3727.6,1.36985974]
[1717058448752,1.95005424,3727.7,3727.6,1.36985974]
[1717058448952,2.53037651,3727.7,3727.6,0.07196752]
[1717058449372,2.53037651,3727.7,3727.5,0.012865]
[1717058449373,2.68269,3727.6,3727.5,0.012865]
[1717058449574,5.21306651,3727.6,3727.5,0.012865]
[1717058449793,5.21306651,3727.6,3727.5,0.08499396]
[1717058449972,5.21306651,3727.6,3727.5,0.012865]
[1717058450166,5.21306651,3727.6,3727.5,0.08489452]
[1717058450385,5.21306651,3727.6,3727.5,0.012865]
[1717058450585,5.21306651,3727.6,3727.5,0.08489452]
[1717058450748,5.21306651,3727.6,3727.5,0.012865]
[1717058450949,5.21306651,3727.6,3727.5,0.08489452]
[1717058451152,5.21306651,3727.6,3727.5,0.012865]
[1717058451353,5.21306651,3727.6,3727.5,0.08489452]
[1717058451584,8.79944316,3727.6,3727.5,0.012865]
[1717058451787,8.79944316,3727.6,3727.5,4.52e-06]
[1717058451788,11.66514316,3727.6,3727.5,4.52e-06]
[1717058451984,11.66514316,3727.6,3725.2,2.3877]
[1717058451985,2.6836,3726.4,3725.2,2.3877]
[1717058452171,2.68369,3726.2,3725.2,2.3877]
[1717058452369,1.95005424,3726.1,3725.2,2.3877]
[1717058452586,1.95005424,3726.1,3725.3,0.25220662]
[1717058452996,1.95005424,3726.1,3725.4,0.0697782]
[1717058453195,1.95005424,3726.1,3725.5,1.29789222]
[1717058453693,1.95005424,3726.1,3725.6,0.06976395]
[1717058453869,1.95005424,3726.1,3725.7,1.29789222]
[1717058454058,1.95005424,3726.1,3725.7,1.50441467]
[1717058454688,1.95005424,3726.1,3725.8,2.4738]
[1717058454988,1.95092381,3726.0,3725.9,1.29789222]
[1717058455149,1.95092381,3726.1,3725.9,1.36763481]
[1717058458290,2.68369,3726.2,3725.9,1.36763481]
[1717058458458,1.9509485,3726.1,3725.9,1.36763481]
[1717058458675,2.68369,3726.2,3725.9,1.36763481]
[1717058458871,2.68369,3726.2,3725.9,1.76545485]
[1717058459206,2.68335,3726.7,3726.1,1.29789222]
[1717058459503,2.68335,3726.7,3726.2,0.07043079]
[1717058459504,1.95088329,3726.6,3726.2,0.07043079]
[1717058459679,1.95088329,3726.6,3726.3,1.29789222]
[1717058459883,1.95088329,3726.6,3726.3,1.43472452]
[1717058460306,1.95088329,3726.6,3726.4,2.53321655]
[1717058460470,1.95088329,3726.6,3726.5,1.29789222]
[1717058460668,2.68335,3726.7,3726.5,1.36879114]
[1717058462492,2.68299,3727.2,3726.6,1.29789222]
[1717058462660,1.95048939,3727.1,3726.7,1.29789222]
[1717058462861,2.68313,3727.0,3726.7,1.29789222]
[1717058463097,2.68313,3727.0,3726.8,0.07079541]
[1717058463307,2.68313,3727.0,3726.9,1.29789222]
[1717058463501,4.63372141,3727.0,3726.9,1.36868051]
[1717058463907,4.63372141,3727.0,3726.9,1.29789222]
[1717058468508,4.63372141,3727.0,3726.4,2.4628]
[1717058468719,2.68328,3726.8,3726.5,1.29789222]
[1717058469014,1.95059141,3726.7,3726.6,0.07080965]
[1717058469207,2.68328,3726.8,3726.6,1.36870187]
[1717058469409,2.68328,3726.8,3726.7,1.29789222]
[1717058469610,4.63388524,3726.8,3726.7,1.36869475]
[1717058469995,5.09727376,3726.8,3726.7,0.07080253]
[1717058470389,5.09727376,3726.8,3726.7,0.07055279]
[1717058470592,5.09727376,3726.8,3726.0,2.4291]
[1717058470943,2.68346,3726.6,3726.1,1.36848773]
[1717058471097,2.68356,3726.4,3726.1,1.36848773]
[1717058471283,2.68369,3726.2,3726.1,1.36848773]
[1717058471483,4.63429524,3726.2,3726.1,1.29789222]
[1717058471891,4.63429524,3726.2,3726.1,1.36848773]
[1717058472211,2.68369,3726.2,3726.1,1.36848773]
[1717058473709,4.63461035,3726.2,3726.1,1.36848773]
[1717058473919,2.68369,3726.2,3726.1,1.29789222]
[1717058474086,2.68369,3726.2,3726.1,1.36848773]
[1717058476398,5.48374305,3726.2,3726.1,0.07059551]
[1717058476598,2.68401,3725.8,3725.1,2.4745]
[1717058476808,2.68401,3725.8,3725.2,1.36855183]
[1717058478403,0.58068246,3725.7,3725.2,1.36855183]
[1717058478644,0.5807261,3725.7,3725.2,1.73145701]
[1717058478801,2.68416,3725.6,3725.2,1.36855183]
[1717058479802,2.68416,3725.6,3725.2,0.07065961]
[1717058479803,5.01906,3725.6,3725.2,0.07065961]
[1717058480013,2.68427,3725.4,3725.2,0.07065961]
[1717058480239,2.68452,3725.1,3724.5,2.3118]
[1717058480534,2.68452,3725.1,3724.6,1.36904812]
[1717058481244,2.68452,3725.1,3724.6,1.73713293]
[1717058481838,2.68452,3725.1,3724.6,1.36904812]
[1717058482038,2.68465,3724.9,3724.7,1.29789222]
[1717058482215,2.68465,3724.9,3724.8,0.07114164]
[1717058482418,2.68465,3724.9,3724.8,1.36903386]
[1717058484904,2.42815511,3724.9,3724.8,1.36903386]
[1717058485447,2.42815511,3724.9,3724.8,1.29789222]
[1717058485657,2.42815511,3724.9,3724.8,1.36903386]
[1717058485806,2.42815511,3724.9,3724.8,0.07114164]
[1717058486005,2.42815511,3724.9,3724.2,2.3196]
[1717058486230,2.42815511,3724.9,3724.3,1.52985222]
[1717058486431,2.42815511,3724.9,3724.3,1.6010295]
[1717058491126,2.4435,3724.8,3724.3,0.07117728]
[1717058491314,2.68499,3724.4,3724.3,0.07117728]
[1717058491654,2.4435,3724.8,3723.7,2.3928]
[1717058491842,2.4435,3724.8,3723.8,1.29789222]
[1717058491843,2.68531,3724.0,3723.8,1.29789222]
[1717058492039,2.68531,3724.0,3723.9,0.07155106]
[1717058492223,2.68531,3724.0,3723.9,3.76224328]
[1717058492556,2.68531,3724.0,3723.9,1.36944328]
[1717058498612,2.68497,3724.5,3724.0,2.4033]
[1717058498816,2.68497,3724.5,3724.1,1.67516655]
[1717058499018,2.68497,3724.5,3724.1,1.74433131]
[1717058500271,2.68461,3725.0,3724.2,1.35159071]
[1717058500430,2.68461,3725.0,3724.3,1.36704273]
[1717058500628,2.68461,3725.0,3724.5,1.29789222]
[1717058500867,2.68424,3725.5,3724.6,0.06912913]
[1717058501049,2.68424,3725.5,3724.4,2.4355]
[1717058501050,2.68424,3725.5,3724.8,1.29789222]
[1717058501645,2.68424,3725.5,3724.9,2.4001]
[1717058501841,2.68424,3725.5,3725.0,1.73679206]
[1717058504364,2.68387,3726.0,3725.3,1.29789222]
[1717058504536,0.5807088,3725.9,3725.3,1.29789222]
[1717058505162,2.68387,3726.0,3725.3,1.29789222]
[1717058505665,0.58070812,3725.9,3725.3,1.29789222]
[1717058505850,2.68387,3726.0,3725.3,1.29789222]
[1717058506960,2.68417,3725.6,3725.3,1.29789222]
[1717058507167,2.68417,3725.6,3724.5,2.3641]
[1717058507461,2.68432,3725.4,3724.6,1.36681742]
[1717058508028,2.68461,3725.0,3724.6,1.36681742]
[1717058510435,8.1219,3726.0,3724.6,1.36681742]
[1717058510436,2.6847,3724.8,3724.6,1.36681742]
[1717058510842,0.58088894,3724.7,3724.6,0.0689252]
[1717058511153,0.58088894,3724.7,3724.1,2.3528]
[1717058511154,2.68486,3724.6,3724.2,1.29789222]
[1717058511342,2.6844,3725.3,3724.5,1.29789222]
[1717058511541,2.6844,3725.3,3724.8,1.29789222]
[1717058511542,0.58082695,3725.2,3724.8,1.29789222]
[1717058511852,2.6844,3725.3,3724.8,1.29789222]
[1717058512666,7.38,3725.8,3725.2,1.29789222]
[1717058512841,2.6839,3726.0,3725.3,1.29789222]
[1717058513041,0.58069255,3725.9,3725.3,1.29789222]
[1717058513257,0.58069255,3725.9,3725.5,1.29789222]
[1717058513567,2.68349,3726.5,3725.8,1.29789222]
[1717058513791,2.68349,3726.5,3726.0,1.29789222]
[1717058514337,2.68349,3726.5,3726.1,0.06936091]
[1717058514535,2.68349,3726.5,3726.2,1.29789222]
[1717058515070,2.68349,3726.5,3726.3,0.06934667]
[1717058515247,2.68349,3726.5,3726.4,1.29789222]
[1717058515443,2.68349,3726.5,3726.4,1.36723177]
[1717058517085,5.92604441,3727.2,3726.4,1.36723177]
[1717058517086,2.68312,3727.1,3726.4,1.50395495]
[1717058517379,0.58056541,3727.0,3726.6,1.29789222]
[1717058517673,2.68312,3727.1,3726.7,0.06931819]
[1717058517857,2.68312,3727.1,3726.8,1.43461326]
[1717058518048,2.68312,3727.1,3726.9,0.06930396]
[1717058518250,2.68312,3727.1,3727.0,1.29789222]
[1717058518459,2.68312,3727.1,3727.0,1.36718906]
[1717058523600,2.6827,3727.6,3727.0,1.36718906]
[1717058524010,2.6827,3727.6,3727.0,1.29789222]
[1717058525583,2.6827,3727.6,3727.1,0.06851065]
[1717058525795,2.6827,3727.6,3727.2,1.29789222]
[1717058526103,2.6827,3727.6,3727.3,0.06849642]
[1717058526779,2.6827,3727.6,3727.3,1.29789222]
[1717058527842,2.6827,3727.6,3726.1,2.6837]
[1717058528135,2.68298,3727.2,3726.3,1.29789222]
[1717058528428,3.0,3727.8,3726.3,1.29789222]
[1717058528429,2.68332,3726.8,3726.3,1.29789222]
[1717058528570,2.68332,3726.8,3726.4,0.06765021]
[1717058528769,2.68332,3726.8,3726.5,1.29789222]
[1717058529186,2.68332,3726.8,3726.6,0.06763597]
[1717058529467,0.268332,3726.8,3725.4,2.4274]
[1717058529673,2.6836,3726.4,3725.5,1.36560652]
[1717058530897,2.68395,3725.9,3725.5,1.36560652]
[1717058531534,2.68355,3726.4,3725.5,1.29789222]
[1717058531736,2.68394,3725.9,3725.5,1.29789222]
[1717058534358,2.68358,3726.4,3725.5,1.29789222]
[1717058534677,7.38,3726.6,3725.9,1.29789222]
[1717058535012,7.38,3726.6,3726.0,0.11728429]
[1717058535257,7.38,3726.6,3726.1,1.29789222]
[1717058537898,7.38,3726.6,3726.2,1.29789222]
[1717058538105,2.68321,3726.9,3726.3,1.29789222]
[1717058538307,2.68321,3726.9,3726.5,1.29789222]
[1717058538473,3.0,3727.4,3726.5,3.64949222]
[1717058538474,2.68285,3727.4,3726.5,3.64949222]
[1717058538676,2.68285,3727.4,3726.6,0.43512533]
[1717058538874,2.68285,3727.4,3726.7,1.29789222]
[1717058540605,2.68301,3727.2,3726.7,1.29789222]
[1717058540807,0.58050245,3727.1,3726.7,1.29789222]
[1717058540979,2.68313,3727.0,3726.8,0.0635273]
[1717058541371,2.68313,3727.0,3726.7,1.29789222]
[1717058541571,2.68313,3727.0,3726.9,0.06352018]
[1717058541898,3.26367437,3727.0,3726.9,1.29789222]
[1717058542544,2.68313,3727.0,3726.9,1.29789222]
[1717058543867,3.26362891,3727.0,3726.9,1.29789222]
[1717058544271,3.26362891,3727.0,3726.2,2.2857]
[1717058544473,0.58049891,3726.9,3726.3,1.36153725]
[1717058544909,2.68331,3726.8,3726.3,1.36153725]
[1717058545129,0.58049891,3726.7,3726.3,1.36153725]
[1717058546016,2.68342,3726.6,3726.3,1.36153725]
[1717058546592,0.58061255,3726.5,3726.3,1.36153725]
[1717058546815,2.68355,3726.4,3726.3,0.06364503]
[1717058547128,3.59057881,3726.4,3725.1,2.3086]
[1717058547429,2.68371,3726.2,3725.3,1.29789222]
[1717058547822,2.68371,3726.2,3725.4,0.06370912]
[1717058548023,2.68371,3726.2,3725.5,1.29789222]
[1717058548535,2.68371,3726.2,3725.6,0.06369488]
[1717058548738,2.68371,3726.2,3725.7,1.29789222]
[1717058549232,2.68371,3726.2,3725.8,0.0638548]
[1717058549404,2.68371,3726.2,3725.9,1.29789222]
[1717058549814,2.68371,3726.2,3726.0,0.06384056]
[1717058550028,2.68371,3726.2,3726.1,1.29789222]
[1717058550429,2.68371,3726.2,3726.1,1.36172566]
[1717058553160,3.26433576,3726.2,3726.1,1.36172566]
[1717058553552,3.26433576,3726.2,3726.1,1.29789222]
[1717058554164,3.26433576,3726.2,3726.1,1.36139226]
[1717058558181,3.26433576,3726.2,3726.1,0.06350004]
[1717058558528,3.26433576,3726.2,3725.1,2.3086]
[1717058558728,2.68371,3726.2,3725.2,1.79720622]
[1717058558929,2.68385,3726.0,3725.2,1.86077036]
[1717058560071,0.58068964,3725.9,3725.2,1.86077036]
[1717058560573,2.68406,3725.7,3725.2,1.36145636]
[1717058560868,2.68421,3725.5,3725.2,1.36145636]
[1717058562871,2.68421,3725.5,3725.2,0.06356414]
[1717058563064,2.68434,3725.3,3725.2,0.06356414]
[1717058563269,3.26510209,3725.3,3724.2,2.4305]
[1717058563463,3.26510209,3725.3,3724.3,1.29789222]
[1717058563669,2.68434,3725.3,3724.3,1.36178999]
[1717058563874,2.68456,3725.0,3724.3,1.36178999]
[1717058564032,2.68456,3725.0,3724.4,0.453029]
[1717058564357,2.68456,3725.0,3724.5,1.36177573]
[1717058564969,0.58085468,3724.9,3724.5,1.36177573]
[1717058565170,0.58085468,3724.9,3724.6,2.4694]
[1717058565381,2.68425,3725.5,3724.6,2.53350982]
[1717058565676,7.38,3726.0,3724.7,2.8529402]
[1717058565834,0.58069573,3725.9,3724.7,2.8529402]
[1717058566037,7.38,3726.0,3724.8,0.06401336]
[1717058566774,7.38,3726.0,3724.8,2.53441336]
[1717058567072,7.38,3726.0,3725.1,1.29789222]
[1717058567233,2.68384,3726.1,3725.1,1.29789222]
[1717058567428,0.58068226,3726.0,3725.2,0.06398486]
[1717058567740,0.58068226,3726.0,3725.3,1.43407993]
[1717058567948,0.58068226,3726.0,3725.3,1.49805767]
[1717058569069,0.58068226,3726.0,3725.4,2.4184]
[1717058569376,0.58068226,3726.0,3725.5,1.36185571]
[1717058570131,0.58066015,3726.0,3725.5,1.36185571]
[1717058570328,0.58066015,3726.0,3725.6,0.39164434]
[1717058570535,0.58066015,3726.0,3725.7,1.36184147]
[1717058571133,0.58066015,3726.0,3725.8,1.29789222]
[1717058571332,0.58066015,3726.0,3725.8,1.36183434]
[1717058571529,0.58058172,3726.7,3725.8,1.36183434]
[1717058571728,0.58058172,3726.7,3725.8,1.53718221]
[1717058571959,2.68342,3726.6,3725.8,1.53718221]
[1717058572132,0.58058172,3726.5,3725.8,1.53718221]
[1717058572548,2.68359,3726.4,3725.8,1.36183434]
[1717058572756,0.58058172,3726.3,3725.8,1.36183434]
[1717058575268,2.68373,3726.2,3725.8,1.36183434]
[1717058575469,0.58058172,3726.1,3725.8,1.36183434]
[1717058582695,0.58058172,3726.1,3725.9,2.3675]
[1717058582912,0.58064395,3726.6,3726.0,1.67082565]
[1717058583214,0.58064395,3726.6,3726.0,1.73456942]
[1717058583614,2.68351,3726.5,3726.0,1.36163599]
[1717058583814,2.68351,3726.5,3726.0,1.29789222]
[1717058584013,2.68372,3726.2,3725.4,2.347]
[1717058584234,2.68387,3726.0,3725.5,1.29789222]
[1717058584438,2.684,3725.8,3725.5,1.29789222]
[1717058584644,0.58068364,3725.7,3725.6,0.06144382]
[1717058584828,0.58068364,3725.7,3725.6,1.35933604]
[1717058585297,2.684,3725.8,3725.6,1.35933604]
[1717058587045,2.6836,3726.4,3725.6,3.73723604]
[1717058587247,0.58063977,3726.3,3725.6,3.73723604]
[1717058587543,0.58063977,3726.3,3725.7,1.29789222]
[1717058587837,0.58063977,3726.3,3725.8,0.0615116]
[1717058588039,0.58063977,3726.3,3725.9,1.29789222]
[1717058588215,0.58063977,3726.3,3725.9,1.3593967]
[1717058589042,2.68371,3726.2,3725.9,1.3593967]
[1717058589243,0.58063977,3726.1,3725.9,1.3593967]
[1717058594748,0.5806206,3726.1,3725.9,1.3593967]
[1717058595566,2.68384,3726.0,3725.9,1.3593967]
[1717058595764,3.2644606,3726.0,3725.9,1.3593967]
[1717058595927,2.68384,3726.0,3725.9,1.3593967]
[1717058596334,3.26449048,3726.0,3725.9,1.3593967]
[1717058597163,0.58065048,3726.0,3725.9,3.84253637]
[1717058597330,3.0,3726.6,3725.9,3.7065967]
[1717058597331,2.68359,3726.4,3725.9,3.7065967]
[1717058597531,0.58065048,3726.3,3725.9,3.7065967]
[1717058598030,0.58065048,3726.3,3725.9,1.3593967]
[1717058604845,0.58065048,3726.3,3725.9,1.73005637]
[1717058605076,0.58061913,3726.3,3726.0,3.74489222]
[1717058605284,0.58061913,3726.7,3726.0,3.85976983]
[1717058606145,0.58061913,3726.7,3726.4,1.29789222]
[1717058606344,0.58061913,3726.8,3726.4,1.29789222]
[1717058606550,0.58061913,3726.8,3726.5,0.06109448]
[1717058606875,0.58061913,3726.8,3726.6,1.29789222]
[1717058607092,0.58061913,3726.8,3726.6,1.35897958]
[1717058607749,0.58061913,3726.8,3726.7,2.2838]
[1717058607951,0.58061913,3727.3,3726.7,3.58169222]
[1717058608154,0.58061913,3727.3,3726.8,1.29789222]
[1717058609202,0.58061913,3727.3,3726.8,1.65606144]
[1717058611477,0.58061913,3727.3,3726.8,1.29789222]
[1717058611884,2.68299,3727.2,3726.8,1.29789222]
[1717058612336,2.68312,3727.0,3725.4,10.06424]
[1717058612537,2.68312,3727.0,3725.8,1.29789222]
[1717058612735,2.68328,3726.8,3725.8,1.29789222]
[1717058613025,0.58046539,3726.7,3725.9,0.06079276]
[1717058613184,0.58046539,3726.7,3726.0,1.29789222]
[1717058613477,0.58046539,3726.7,3726.1,0.06077852]
[1717058613676,0.58046539,3726.7,3726.2,1.29789222]
[1717058613862,0.58046539,3726.7,3726.2,1.35866362]
[1717058614469,2.68342,3726.6,3726.2,1.35866362]
[1717058614874,0.58046539,3726.5,3726.2,1.35866362]
[1717058615180,2.68355,3726.4,3726.2,0.0607714]
[1717058615499,0.58063219,3726.3,3725.5,2.4244]
[1717058615642,0.58063219,3726.3,3725.6,1.54033222]
[1717058615838,0.58063219,3726.3,3725.6,1.60132018]
[1717058617572,0.58063219,3726.3,3725.7,1.29789222]
[1717058617772,2.68355,3726.4,3725.7,1.29789222]
[1717058618096,2.68355,3726.4,3725.8,0.46354574]
[1717058618097,0.58064763,3726.3,3725.8,0.46354574]
[1717058618250,0.58064763,3726.3,3725.9,1.29789222]
[1717058618455,0.58064763,3726.3,3725.9,1.35885882]
[1717058619653,2.68355,3726.4,3725.9,1.35885882]
[1717058619853,2.68355,3726.4,3726.0,0.17614308]
[1717058620060,2.68355,3726.4,3726.1,1.29789222]
[1717058620241,2.68355,3726.4,3726.2,2.3689]
[1717058620436,2.68355,3726.4,3726.3,1.29789222]
[1717058620678,2.68355,3726.4,3726.3,1.35892877]
[1717058622681,2.68323,3726.9,3726.3,1.74932596]
[1717058623059,0.58051489,3726.8,3726.3,1.74932596]
[1717058623569,2.68323,3726.9,3726.3,1.74932596]
[1717058627658,7.38,3727.2,3726.5,1.29789222]
[1717058627898,0.58048313,3727.1,3726.6,2.3457]
[1717058628138,0.58044832,3727.3,3726.7,1.29789222]
[1717058628473,0.58044832,3727.3,3726.8,0.06075825]
[1717058628678,0.58044832,3727.3,3726.9,1.29789222]
[1717058628865,0.58044832,3727.3,3726.9,1.35864336]
[1717058629066,0.58044832,3727.3,3727.0,0.13586434]
[1717058629299,0.58044832,3727.3,3727.1,1.29789222]
[1717058629504,2.68287,3727.4,3727.1,1.35862912]
[1717058631574,2.68244,3728.0,3727.1,1.35862912]
[1717058631774,3.58038993,3727.9,3727.1,1.29789222]
[1717058632000,0.58038993,3727.8,3727.1,1.44126788]
[1717058634739,0.58038993,3727.8,3727.2,2.4556]
[1717058634937,0.58038993,3727.8,3727.3,1.29789222]
[1717058635096,2.68244,3728.0,3727.4,0.05365079]
[1717058635298,0.58036485,3727.9,3727.5,1.67860652]
[1717058635498,2.68244,3728.0,3727.5,1.67860652]
[1717058636603,2.68244,3728.0,3727.6,0.06009464]
[1717058636926,2.68244,3728.0,3727.7,1.29789222]
[1717058637332,2.68244,3728.0,3727.8,0.06008041]
[1717058637643,2.68244,3728.0,3727.9,1.29789222]
[1717058637828,2.68244,3728.0,3727.9,1.35796551]
[1717058642349,2.68244,3728.0,3727.9,0.06007329]
[1717058642526,2.68244,3728.0,3727.9,1.35796551]
[1717058642723,2.68244,3728.0,3727.9,1.29789222]
[1717058648718,2.68244,3728.0,3724.7,2.68477]
[1717058648719,2.6829,3727.3,3726.5,2.2952]
[1717058648924,0.84860397,3728.0,3727.2,1.29789222]
[1717058648925,2.68259,3727.8,3727.2,1.29789222]
[1717058649153,0.58049654,3727.7,3727.3,1.29789222]
[1717058649318,2.68259,3727.8,3727.3,1.35596496]
[1717058650269,2.6822,3728.3,3727.7,3.62569222]
[1717058650559,0.58037912,3728.2,3727.8,1.29789222]
[1717058650769,2.6822,3728.3,3727.8,1.35402292]
[1717058651051,0.58031459,3728.2,3727.8,1.35402292]
[1717058652267,0.58031459,3728.2,3727.8,1.72220521]
[1717058653047,0.58031459,3728.2,3728.0,1.29789222]
[1717058653457,2.6822,3728.3,3728.1,0.05605371]
[1717058653740,2.6822,3728.3,3728.2,1.29789222]
[1717058654153,2.6822,3728.3,3728.2,1.35389627]
[1717058654471,2.6822,3728.3,3728.2,1.7200559]
[1717058654838,2.68186,3728.8,3728.2,1.7200559]
[1717058655158,0.58022519,3728.7,3728.2,1.66405185]
[1717058655363,0.58022519,3728.7,3728.6,1.29789222]
[1717058655517,0.58022519,3729.0,3728.6,1.29789222]
[1717058655721,2.68177,3728.9,3728.6,1.35381219]
[1717058656066,2.68189,3728.7,3728.6,1.35381219]
[1717058656221,2.68189,3728.7,3728.6,1.29789222]
[1717058656422,2.68189,3728.7,3728.6,1.35381219]
[1717058656624,3.26211519,3728.7,3728.6,1.35381219]
[1717058657971,3.26211519,3728.7,3728.6,0.05591997]
[1717058658216,3.58832671,3728.7,3728.6,0.05591997]
[1717058658472,2.68252,3727.9,3726.4,2.3155]
[1717058658674,2.68252,3727.9,3727.1,1.29789222]
[1717058658833,2.68269,3727.6,3727.1,1.29789222]
[1717058659483,0.58040733,3727.5,3727.1,1.29789222]
[1717058660033,2.68269,3727.6,3727.1,1.29789222]
[1717058661179,2.68235,3728.1,3727.5,1.29789222]
[1717058661356,0.58038884,3728.0,3727.6,1.29789222]
[1717058661746,0.58038884,3728.0,3727.9,1.29789222]
[1717058661945,0.58031259,3728.4,3728.0,2.4815]
[1717058662145,0.58031259,3728.4,3728.1,1.29789222]
[1717058662352,0.58031259,3728.4,3728.2,0.37793922]
[1717058662565,0.58031259,3728.4,3728.3,1.29789222]